[Event "*** Titled Tuesday Blitz"]
[Site "Chess.com"]
[Date "2020.11.24"]
[Round "7"]
[White "temus_galaktionov"]
[Black "Zhani-Z"]
[Result "1-0"]
[WhiteElo "2690"]
[BlackElo "2518"]
[TimeControl "180+1"]
[EndTime "11:36:46 PST"]
[Termination "temus_galaktionov won on time"]

1. d4 {[%clk 0:03:00.9]} 1... Nf6 {[%clk 0:02:58.6]} 2. Nf3 {[%clk 0:03:00.6]}
2... d5 {[%clk 0:02:56.4]} 3. c4 {[%clk 0:03:00.5]} 3... e6 {[%clk 0:02:55.4]}
4. Nc3 {[%clk 0:03:00]} 4... a6 {[%clk 0:02:55]} 5. cxd5 {[%clk 0:02:59.6]} 5...
exd5 {[%clk 0:02:55.4]} 6. Bg5 {[%clk 0:02:59.7]} 6... Be6 {[%clk 0:02:55.5]} 7.
e3 {[%clk 0:02:59.7]} 7... Bd6 {[%clk 0:02:55.1]} 8. Bd3 {[%clk 0:03:00.2]} 8...
Nbd7 {[%clk 0:02:55.2]} 9. h3 {[%clk 0:03:00.4]} 9... c6 {[%clk 0:02:55.3]} 10.
O-O {[%clk 0:03:00.7]} 10... Qc7 {[%clk 0:02:54.8]} 11. Qd2 {[%clk 0:03:00.5]}
11... h6 {[%clk 0:02:54.7]} 12. Bf4 {[%clk 0:03:00.1]} 12... O-O {[%clk
0:02:51.5]} 13. Rfc1 {[%clk 0:02:58.6]} 13... Rfe8 {[%clk 0:02:48.7]} 14. Na4
{[%clk 0:02:57.1]} 14... Bxf4 {[%clk 0:02:45.1]} 15. exf4 {[%clk 0:02:58]} 15...
Ne4 {[%clk 0:02:44.6]} 16. Bxe4 {[%clk 0:02:50.7]} 16... dxe4 {[%clk 0:02:43]}
17. Ne5 {[%clk 0:02:51.6]} 17... Rad8 {[%clk 0:02:24.3]} 18. Qe3 {[%clk
0:02:46.2]} 18... Nf6 {[%clk 0:02:23.4]} 19. Rd1 {[%clk 0:02:39.7]} 19... Bc8
{[%clk 0:02:14.7]} 20. Rac1 {[%clk 0:02:35.1]} 20... Nd5 {[%clk 0:02:13.2]} 21.
Qg3 {[%clk 0:02:24.4]} 21... f6 {[%clk 0:02:11.2]} 22. Ng6 {[%clk 0:02:19.8]}
22... Bf5 {[%clk 0:02:09.1]} 23. Nh4 {[%clk 0:02:19.4]} 23... Nxf4 {[%clk
0:02:02.6]} 24. Kh2 {[%clk 0:02:09]} 24... Bh7 {[%clk 0:02:01.4]} 25. Nc5 {[%clk
0:01:59.6]} 25... g5 {[%clk 0:01:43.3]} 26. d5 {[%clk 0:01:24]} 26... Rxd5
{[%clk 0:01:30.3]} 27. Rxd5 {[%clk 0:01:16.6]} 27... Nxd5 {[%clk 0:01:28.4]} 28.
Qxc7 {[%clk 0:01:09.3]} 28... Nxc7 {[%clk 0:01:27.3]} 29. Nxb7 {[%clk
0:01:08.2]} 29... gxh4 {[%clk 0:01:25.7]} 30. Rxc6 {[%clk 0:01:06.7]} 30... Nd5
{[%clk 0:01:11.7]} 31. Rd6 {[%clk 0:00:57.2]} 31... Nb4 {[%clk 0:01:04.6]} 32.
Rxf6 {[%clk 0:00:55]} 32... Nxa2 {[%clk 0:00:58.4]} 33. Rxa6 {[%clk 0:00:53.6]}
33... Nb4 {[%clk 0:00:56]} 34. Rxh6 {[%clk 0:00:48.7]} 34... Nd3 {[%clk
0:00:55.7]} 35. Nd6 {[%clk 0:00:46.9]} 35... Rb8 {[%clk 0:00:54]} 36. Rxh4
{[%clk 0:00:27]} 36... Nxf2 {[%clk 0:00:53.2]} 37. Kg3 {[%clk 0:00:26.5]} 37...
e3 {[%clk 0:00:50.2]} 38. Kf3 {[%clk 0:00:25.4]} 38... Rb3 {[%clk 0:00:41.1]}
39. Nc4 {[%clk 0:00:24.9]} 39... Be4+ {[%clk 0:00:30]} 40. Ke2 {[%clk
0:00:16.5]} 40... Bd3+ {[%clk 0:00:29.3]} 41. Kf3 {[%clk 0:00:17.2]} 41... Bxc4
{[%clk 0:00:20.1]} 42. Rxc4 {[%clk 0:00:18.1]} 42... Nd1 {[%clk 0:00:19.1]} 43.
Ke2 {[%clk 0:00:16.6]} 43... Nxb2 {[%clk 0:00:17.7]} 44. Re4 {[%clk 0:00:15.9]}
44... Rc3 {[%clk 0:00:12.8]} 45. Rxe3 {[%clk 0:00:15.8]} 45... Rc2+ {[%clk
0:00:13.2]} 46. Kf3 {[%clk 0:00:16.7]} 46... Nc4 {[%clk 0:00:13.2]} 47. Re7
{[%clk 0:00:15.4]} 47... Kf8 {[%clk 0:00:13.1]} 48. Rb7 {[%clk 0:00:14.3]} 48...
Ne5+ {[%clk 0:00:12.4]} 49. Kf4 {[%clk 0:00:13.7]} 49... Nd3+ {[%clk 0:00:12.5]}
50. Ke3 {[%clk 0:00:13.2]} 50... Ne5 {[%clk 0:00:12]} 51. g4 {[%clk 0:00:12.2]}
51... Ng6 {[%clk 0:00:11.6]} 52. Ke4 {[%clk 0:00:11.1]} 52... Rf2 {[%clk
0:00:11.3]} 53. Ra7 {[%clk 0:00:07.8]} 53... Nh4 {[%clk 0:00:07.3]} 54. Rh7
{[%clk 0:00:06.3]} 54... Ng6 {[%clk 0:00:05.5]} 55. h4 {[%clk 0:00:05.9]} 55...
Rf4+ {[%clk 0:00:04.9]} 56. Ke3 {[%clk 0:00:05.9]} 56... Rxg4 {[%clk 0:00:05.8]}
57. h5 {[%clk 0:00:06.4]} 57... Ne7 {[%clk 0:00:04.7]} 58. h6 {[%clk 0:00:05.8]}
58... Nf5+ {[%clk 0:00:03.5]} 59. Kf3 {[%clk 0:00:05.9]} 59... Rh4 {[%clk
0:00:03.4]} 60. Rh8+ {[%clk 0:00:03]} 60... Kf7 {[%clk 0:00:03]} 61. h7 {[%clk
0:00:03.9]} 61... Kg7 {[%clk 0:00:02.6]} 62. Ra8 {[%clk 0:00:03.5]} 62... Kxh7
{[%clk 0:00:02.6]} 63. Ra5 {[%clk 0:00:02.2]} 63... Kg6 {[%clk 0:00:02.5]} 64.
Kf2 {[%clk 0:00:03.1]} 64... Kg5 {[%clk 0:00:03.4]} 65. Rb5 {[%clk 0:00:02.3]}
65... Rc4 {[%clk 0:00:02.8]} 66. Ra5 {[%clk 0:00:01.6]} 66... Kf4 {[%clk
0:00:02.1]} 67. Ke2 {[%clk 0:00:02.5]} 67... Rc3 {[%clk 0:00:01.1]} 68. Kd2
{[%clk 0:00:03.4]} 1-0

[Event "*** Titled Tuesday Blitz"]
[Site "Chess.com"]
[Date "2020.11.24"]
[Round "7"]
[White "Fandorine"]
[Black "Arseniy_Nesterov"]
[Result "1/2-1/2"]
[WhiteElo "2875"]
[BlackElo "2812"]
[TimeControl "180+1"]
[EndTime "11:36:49 PST"]
[Termination "Game drawn by repetition"]

1. Nf3 {[%clk 0:03:00.9]} 1... d5 {[%clk 0:03:00]} 2. c4 {[%clk 0:03:00.5]} 2...
c6 {[%clk 0:03:00]} 3. e3 {[%clk 0:02:59.6]} 3... Nf6 {[%clk 0:02:59.9]} 4. Nc3
{[%clk 0:02:59.8]} 4... e6 {[%clk 0:02:59.9]} 5. b3 {[%clk 0:02:59.5]} 5... Bd6
{[%clk 0:02:59.8]} 6. Bb2 {[%clk 0:02:58.8]} 6... O-O {[%clk 0:03:00]} 7. Qc2
{[%clk 0:02:59.2]} 7... e5 {[%clk 0:02:58.8]} 8. cxd5 {[%clk 0:02:57]} 8... cxd5
{[%clk 0:02:59]} 9. Nb5 {[%clk 0:02:57.2]} 9... Nc6 {[%clk 0:02:59.4]} 10. Nxd6
{[%clk 0:02:56.4]} 10... Qxd6 {[%clk 0:03:00.3]} 11. d4 {[%clk 0:02:56.9]} 11...
Nb4 {[%clk 0:02:58.7]} 12. Qd1 {[%clk 0:02:50.1]} 12... e4 {[%clk 0:02:58.1]}
13. Ne5 {[%clk 0:02:38.1]} 13... Ne8 {[%clk 0:02:57.7]} 14. a3 {[%clk
0:02:31.6]} 14... f6 {[%clk 0:02:57.6]} 15. Nc4 {[%clk 0:02:20.2]} 15... dxc4
{[%clk 0:02:53.2]} 16. axb4 {[%clk 0:02:19]} 16... Qxb4+ {[%clk 0:02:52.8]} 17.
Qd2 {[%clk 0:02:19.6]} 17... Qxb3 {[%clk 0:02:52.9]} 18. Ra3 {[%clk 0:02:16.7]}
18... Qb6 {[%clk 0:02:52.3]} 19. Bxc4+ {[%clk 0:02:15.3]} 19... Be6 {[%clk
0:02:52.5]} 20. d5 {[%clk 0:01:56.7]} 20... Nd6 {[%clk 0:02:52.5]} 21. Ba2
{[%clk 0:01:53.6]} 21... Bf7 {[%clk 0:02:40.4]} 22. O-O {[%clk 0:01:54]} 22...
a6 {[%clk 0:02:20.7]} 23. Bd4 {[%clk 0:01:30.2]} 23... Qc7 {[%clk 0:02:15.7]}
24. Rc3 {[%clk 0:01:19.3]} 24... Qd7 {[%clk 0:02:12.7]} 25. Bb6 {[%clk
0:01:14.8]} 25... Rfc8 {[%clk 0:02:10]} 26. Rfc1 {[%clk 0:01:12.5]} 26... Rxc3
{[%clk 0:02:09.3]} 27. Rxc3 {[%clk 0:01:13.4]} 27... Rc8 {[%clk 0:02:08.1]} 28.
h3 {[%clk 0:01:13.7]} 28... h6 {[%clk 0:02:03.1]} 29. Rxc8+ {[%clk 0:01:03.3]}
29... Qxc8 {[%clk 0:01:53.2]} 30. Qb4 {[%clk 0:01:02.9]} 30... Qd7 {[%clk
0:01:48.5]} 31. Bb3 {[%clk 0:00:52.1]} 31... Nc8 {[%clk 0:01:42.1]} 32. d6
{[%clk 0:00:38.5]} 32... Qxd6 {[%clk 0:01:21]} 33. Bc5 {[%clk 0:00:24.8]} 33...
Qc6 {[%clk 0:01:12.8]} 34. Bxf7+ {[%clk 0:00:24.4]} 34... Kxf7 {[%clk
0:01:12.9]} 35. Qb3+ {[%clk 0:00:25.3]} 35... Kg6 {[%clk 0:00:55.8]} 36. Bf8
{[%clk 0:00:17.4]} 36... Qe8 {[%clk 0:00:47]} 37. Qg8 {[%clk 0:00:16.1]} 37...
Qf7 {[%clk 0:00:44]} 38. Qh8 {[%clk 0:00:16.6]} 38... Ne7 {[%clk 0:00:34.4]} 39.
Bxe7 {[%clk 0:00:03.7]} 39... Qxe7 {[%clk 0:00:34.5]} 40. g4 {[%clk 0:00:04.6]}
40... Kf7 {[%clk 0:00:32.2]} 41. Qc8 {[%clk 0:00:03.7]} 41... a5 {[%clk
0:00:26.1]} 42. Kg2 {[%clk 0:00:03.7]} 42... b5 {[%clk 0:00:23.8]} 43. Qc6
{[%clk 0:00:03.8]} 43... b4 {[%clk 0:00:21.3]} 44. Qd5+ {[%clk 0:00:03.9]} 44...
Kf8 {[%clk 0:00:19.2]} 45. Qxa5 {[%clk 0:00:04.3]} 45... Qb7 {[%clk 0:00:19.8]}
46. Qd8+ {[%clk 0:00:04.2]} 46... Kf7 {[%clk 0:00:20]} 47. h4 {[%clk 0:00:04]}
47... b3 {[%clk 0:00:19.4]} 48. Qd1 {[%clk 0:00:03.9]} 48... b2 {[%clk
0:00:19.3]} 49. Qb1 {[%clk 0:00:04.7]} 49... Qb4 {[%clk 0:00:18.8]} 50. Kg3
{[%clk 0:00:05.3]} 50... Qd6+ {[%clk 0:00:17.9]} 51. Kg2 {[%clk 0:00:05.4]}
51... Qb4 {[%clk 0:00:18.1]} 52. h5 {[%clk 0:00:05.5]} 52... Kg8 {[%clk
0:00:16.9]} 53. Kg3 {[%clk 0:00:05.2]} 53... Kh7 {[%clk 0:00:16.3]} 54. Kg2
{[%clk 0:00:05.3]} 54... Kh8 {[%clk 0:00:16.3]} 55. Kg3 {[%clk 0:00:05.6]} 55...
Qc3 {[%clk 0:00:16]} 56. Qa2 {[%clk 0:00:04.8]} 56... Qc2 {[%clk 0:00:11.9]} 57.
Qf7 {[%clk 0:00:04.2]} 57... Qc8 {[%clk 0:00:10]} 58. Qb3 {[%clk 0:00:04.6]}
58... Qc7+ {[%clk 0:00:09.7]} 59. Kg2 {[%clk 0:00:04.1]} 59... Qe5 {[%clk
0:00:09.7]} 60. Kh3 {[%clk 0:00:01.1]} 60... f5 {[%clk 0:00:09.1]} 61. Kg2
{[%clk 0:00:01.6]} 61... fxg4 {[%clk 0:00:09.1]} 62. Qb7 {[%clk 0:00:02.1]}
62... Qxh5 {[%clk 0:00:08.3]} 63. Qxb2 {[%clk 0:00:02.5]} 63... Qh3+ {[%clk
0:00:08.5]} 64. Kg1 {[%clk 0:00:03.1]} 64... g3 {[%clk 0:00:08.9]} 65. Qb8+
{[%clk 0:00:03.7]} 65... Kh7 {[%clk 0:00:09.3]} 66. fxg3 {[%clk 0:00:04.2]}
66... Qg4 {[%clk 0:00:09.5]} 67. Qe5 {[%clk 0:00:04.6]} 67... Qd1+ {[%clk
0:00:09.3]} 68. Kh2 {[%clk 0:00:04.8]} 68... Qe2+ {[%clk 0:00:09.7]} 69. Kh3
{[%clk 0:00:04.8]} 69... Qf1+ {[%clk 0:00:09]} 70. Kh4 {[%clk 0:00:05]} 70...
g5+ {[%clk 0:00:07.9]} 71. Kg4 {[%clk 0:00:04.4]} 71... Qf3+ {[%clk 0:00:08]}
72. Kh3 {[%clk 0:00:04.9]} 72... Qh1+ {[%clk 0:00:08]} 73. Kg4 {[%clk
0:00:04.8]} 73... Qf3+ {[%clk 0:00:08.4]} 74. Kh3 {[%clk 0:00:05.4]} 74... Qxe3
{[%clk 0:00:05.9]} 75. Qe7+ {[%clk 0:00:04.3]} 75... Kg6 {[%clk 0:00:06.2]} 76.
Qe6+ {[%clk 0:00:04.8]} 76... Kg7 {[%clk 0:00:06.9]} 77. Qe7+ {[%clk 0:00:05.4]}
77... Kg6 {[%clk 0:00:07.6]} 78. Qe6+ {[%clk 0:00:06]} 78... Kg7 {[%clk
0:00:08]} 79. Qe7+ {[%clk 0:00:06.6]} 79... Kg6 {[%clk 0:00:08.4]} 1/2-1/2

[Event "*** Titled Tuesday Blitz"]
[Site "Chess.com"]
[Date "2020.11.24"]
[Round "7"]
[White "Sinquefield"]
[Black "DenishevM"]
[Result "1-0"]
[WhiteElo "2470"]
[BlackElo "2593"]
[TimeControl "180+1"]
[EndTime "11:36:50 PST"]
[Termination "Sinquefield won by checkmate"]

1. e4 {[%clk 0:03:00.9]} 1... c5 {[%clk 0:02:56]} 2. Nf3 {[%clk 0:03:00.2]} 2...
d6 {[%clk 0:02:56]} 3. d4 {[%clk 0:03:00.6]} 3... cxd4 {[%clk 0:02:56.9]} 4.
Nxd4 {[%clk 0:03:01.5]} 4... Nf6 {[%clk 0:02:57]} 5. Nc3 {[%clk 0:03:02]} 5...
a6 {[%clk 0:02:55.8]} 6. Bc4 {[%clk 0:03:01.4]} 6... e6 {[%clk 0:02:55.2]} 7.
Bb3 {[%clk 0:03:01.5]} 7... b5 {[%clk 0:02:54.9]} 8. Qf3 {[%clk 0:02:55.8]} 8...
Qc7 {[%clk 0:02:54.3]} 9. O-O {[%clk 0:02:54.2]} 9... Be7 {[%clk 0:02:53.8]} 10.
Qg3 {[%clk 0:02:54.4]} 10... O-O {[%clk 0:02:53.7]} 11. Bh6 {[%clk 0:02:54.8]}
11... Ne8 {[%clk 0:02:53.9]} 12. Nf3 {[%clk 0:02:45.5]} 12... Nd7 {[%clk
0:02:43.6]} 13. Rad1 {[%clk 0:02:41.9]} 13... Nc5 {[%clk 0:02:40.3]} 14. Bf4
{[%clk 0:02:41.1]} 14... Bb7 {[%clk 0:02:32.4]} 15. Rfe1 {[%clk 0:02:40.5]}
15... Rd8 {[%clk 0:02:30]} 16. a3 {[%clk 0:02:39.1]} 16... Nf6 {[%clk
0:02:25.2]} 17. e5 {[%clk 0:02:30.7]} 17... dxe5 {[%clk 0:02:13.1]} 18. Bxe5
{[%clk 0:02:27.8]} 18... Qb6 {[%clk 0:02:12.9]} 19. Nd4 {[%clk 0:01:57.2]} 19...
Kh8 {[%clk 0:02:01.7]} 20. h4 {[%clk 0:01:48.9]} 20... Bd6 {[%clk 0:01:49.5]}
21. Bxd6 {[%clk 0:01:30.3]} 21... Qxd6 {[%clk 0:01:50.4]} 22. Qg5 {[%clk
0:01:30.2]} 22... h6 {[%clk 0:01:43.7]} 23. Qe3 {[%clk 0:01:20.2]} 23... Nxb3
{[%clk 0:01:35.9]} 24. Nxb3 {[%clk 0:01:17.2]} 24... Qc7 {[%clk 0:01:33.2]} 25.
Qc5 {[%clk 0:01:15.1]} 25... Qf4 {[%clk 0:01:28.8]} 26. Rd4 {[%clk 0:01:11.4]}
26... Qf5 {[%clk 0:01:12.6]} 27. Qxf5 {[%clk 0:01:09.3]} 27... exf5 {[%clk
0:01:13.5]} 28. Red1 {[%clk 0:01:09.8]} 28... Rxd4 {[%clk 0:01:11.2]} 29. Rxd4
{[%clk 0:01:07.7]} 29... Rc8 {[%clk 0:01:08.3]} 30. f3 {[%clk 0:00:57.1]} 30...
g6 {[%clk 0:01:02.8]} 31. Rd6 {[%clk 0:00:54.5]} 31... Kg7 {[%clk 0:01:01.1]}
32. Na5 {[%clk 0:00:53.1]} 32... Ne8 {[%clk 0:00:49.3]} 33. Rb6 {[%clk
0:00:50.9]} 33... Ba8 {[%clk 0:00:44.2]} 34. Rxa6 {[%clk 0:00:51.1]} 34... Rd8
{[%clk 0:00:40.7]} 35. Nxb5 {[%clk 0:00:44.4]} 35... Nf6 {[%clk 0:00:39.4]} 36.
Nc3 {[%clk 0:00:42.4]} 36... Bd5 {[%clk 0:00:35.4]} 37. Kf2 {[%clk 0:00:25.1]}
37... g5 {[%clk 0:00:32.9]} 38. hxg5 {[%clk 0:00:24.5]} 38... hxg5 {[%clk
0:00:33.8]} 39. Nxd5 {[%clk 0:00:22.6]} 39... Rxd5 {[%clk 0:00:32.6]} 40. Nc4
{[%clk 0:00:22.6]} 40... Rd1 {[%clk 0:00:31.5]} 41. Ne3 {[%clk 0:00:21]} 41...
Rb1 {[%clk 0:00:24.8]} 42. Nxf5+ {[%clk 0:00:19.3]} 42... Kg6 {[%clk 0:00:25.4]}
43. Ne7+ {[%clk 0:00:18.7]} 43... Kg7 {[%clk 0:00:26]} 44. Rb6 {[%clk
0:00:19.2]} 44... g4 {[%clk 0:00:25.8]} 45. Nf5+ {[%clk 0:00:18.8]} 45... Kg6
{[%clk 0:00:25.4]} 46. fxg4 {[%clk 0:00:18.8]} 46... Kg5 {[%clk 0:00:24.3]} 47.
Ne3 {[%clk 0:00:18.2]} 47... Ne4+ {[%clk 0:00:16.2]} 48. Kf3 {[%clk 0:00:17]}
48... Nd2+ {[%clk 0:00:12.9]} 49. Ke2 {[%clk 0:00:17]} 49... Ne4 {[%clk
0:00:13.3]} 50. Rb5+ {[%clk 0:00:15.9]} 50... Kf4 {[%clk 0:00:12.5]} 51. Rb4
{[%clk 0:00:15.1]} 51... Ra1 {[%clk 0:00:06.4]} 52. Nd1 {[%clk 0:00:10.7]} 52...
Ke5 {[%clk 0:00:05.8]} 53. Rb5+ {[%clk 0:00:10.1]} 53... Kd6 {[%clk 0:00:05.5]}
54. Ne3 {[%clk 0:00:09.5]} 54... Rb1 {[%clk 0:00:05]} 55. a4 {[%clk 0:00:09.2]}
55... Ra1 {[%clk 0:00:05.1]} 56. Kd3 {[%clk 0:00:09.5]} 56... Nc5+ {[%clk
0:00:04.9]} 57. Kc4 {[%clk 0:00:08.5]} 57... Rxa4+ {[%clk 0:00:05]} 58. b4
{[%clk 0:00:09.1]} 58... Ne6 {[%clk 0:00:04.8]} 59. Rb6+ {[%clk 0:00:09.3]}
59... Kc7 {[%clk 0:00:05.4]} 60. Nd5+ {[%clk 0:00:09.6]} 60... Kc8 {[%clk
0:00:06.1]} 61. Kb5 {[%clk 0:00:09.2]} 61... Ra2 {[%clk 0:00:05.8]} 62. c4
{[%clk 0:00:09.5]} 62... Nd4+ {[%clk 0:00:06.3]} 63. Kc5 {[%clk 0:00:09.6]}
63... Ne6+ {[%clk 0:00:06.9]} 64. Kd6 {[%clk 0:00:09.1]} 64... Rd2 {[%clk
0:00:07.5]} 65. Rc6+ {[%clk 0:00:09.3]} 65... Kb8 {[%clk 0:00:08]} 66. b5 {[%clk
0:00:09.9]} 66... Nd4 {[%clk 0:00:07.8]} 67. Rb6+ {[%clk 0:00:09.1]} 67... Ka7
{[%clk 0:00:08.4]} 68. Ra6+ {[%clk 0:00:09.1]} 68... Kb7 {[%clk 0:00:09]} 69.
Ra3 {[%clk 0:00:07.9]} 69... Nc2 {[%clk 0:00:05.7]} 70. Rf3 {[%clk 0:00:07.5]}
70... f5 {[%clk 0:00:03.1]} 71. Rxf5 {[%clk 0:00:07.3]} 71... Nb4 {[%clk
0:00:04]} 72. Rf7+ {[%clk 0:00:07.2]} 72... Kc8 {[%clk 0:00:04.7]} 73. g5 {[%clk
0:00:07.5]} 73... Kd8 {[%clk 0:00:05.1]} 74. Rf8# {[%clk 0:00:07.4]} 1-0

[Event "*** Titled Tuesday Blitz"]
[Site "Chess.com"]
[Date "2020.11.24"]
[Round "7"]
[White "arjwezhrtdrz"]
[Black "vanyakuba"]
[Result "1-0"]
[WhiteElo "2339"]
[BlackElo "2465"]
[TimeControl "180+1"]
[EndTime "11:36:52 PST"]
[Termination "arjwezhrtdrz won on time"]

1. e4 {[%clk 0:03:00.5]} 1... d5 {[%clk 0:02:58.1]} 2. Nc3 {[%clk 0:02:59.7]}
2... dxe4 {[%clk 0:02:58.1]} 3. Nxe4 {[%clk 0:02:59.7]} 3... Qd5 {[%clk
0:02:58.4]} 4. Qf3 {[%clk 0:02:57.9]} 4... Nc6 {[%clk 0:02:57.6]} 5. c3 {[%clk
0:02:57.5]} 5... e5 {[%clk 0:02:57.4]} 6. Ng3 {[%clk 0:02:55.5]} 6... Qxf3
{[%clk 0:02:47.9]} 7. Nxf3 {[%clk 0:02:55.3]} 7... f5 {[%clk 0:02:27.8]} 8. Bb5
{[%clk 0:02:53.2]} 8... Bd6 {[%clk 0:02:26.6]} 9. O-O {[%clk 0:02:47]} 9... Nf6
{[%clk 0:02:13.1]} 10. Bxc6+ {[%clk 0:02:31.2]} 10... bxc6 {[%clk 0:02:12.3]}
11. Nxe5 {[%clk 0:02:30]} 11... Bxe5 {[%clk 0:02:10.4]} 12. Re1 {[%clk
0:02:30.1]} 12... Ne4 {[%clk 0:01:55.5]} 13. Nxe4 {[%clk 0:02:29.5]} 13... O-O
{[%clk 0:01:53.7]} 14. Ng3 {[%clk 0:02:01.9]} 14... Bd6 {[%clk 0:01:43.4]} 15.
d4 {[%clk 0:02:01.4]} 15... Bd7 {[%clk 0:01:36]} 16. Bd2 {[%clk 0:01:54.3]}
16... Kf7 {[%clk 0:01:29.3]} 17. Re2 {[%clk 0:01:47.7]} 17... Rfe8 {[%clk
0:01:24.3]} 18. Rae1 {[%clk 0:01:46.8]} 18... Rxe2 {[%clk 0:01:24.2]} 19. Rxe2
{[%clk 0:01:47]} 19... Rb8 {[%clk 0:01:23.3]} 20. b3 {[%clk 0:01:46.7]} 20... a6
{[%clk 0:01:18.4]} 21. Nh5 {[%clk 0:01:35.1]} 21... g6 {[%clk 0:01:13.5]} 22.
Nf4 {[%clk 0:01:32.7]} 22... a5 {[%clk 0:00:55.7]} 23. Nd3 {[%clk 0:01:29.2]}
23... a4 {[%clk 0:00:54.5]} 24. b4 {[%clk 0:01:29.6]} 24... Be6 {[%clk
0:00:52.1]} 25. Nc1 {[%clk 0:01:18.3]} 25... a3 {[%clk 0:00:42.8]} 26. g3 {[%clk
0:01:15.5]} 26... Bc4 {[%clk 0:00:41.7]} 27. Re1 {[%clk 0:01:15]} 27... Ra8
{[%clk 0:00:28.2]} 28. f3 {[%clk 0:01:10.4]} 28... Rb8 {[%clk 0:00:24.9]} 29.
Kf2 {[%clk 0:01:07.8]} 29... Ra8 {[%clk 0:00:25.1]} 30. Bf4 {[%clk 0:01:07.7]}
30... Rb8 {[%clk 0:00:16.9]} 31. Rd1 {[%clk 0:01:04.1]} 31... Kf6 {[%clk
0:00:12.3]} 32. h4 {[%clk 0:01:02.6]} 32... Rh8 {[%clk 0:00:11.3]} 33. Re1
{[%clk 0:00:59.9]} 33... h6 {[%clk 0:00:10]} 34. Be5+ {[%clk 0:01:00]} 34...
Bxe5 {[%clk 0:00:10]} 35. Rxe5 {[%clk 0:01:00.2]} 35... Ra8 {[%clk 0:00:09.8]}
36. Rc5 {[%clk 0:00:57.9]} 36... Bd5 {[%clk 0:00:07.3]} 37. Ra5 {[%clk 0:00:57]}
37... Rxa5 {[%clk 0:00:06]} 38. bxa5 {[%clk 0:00:57.3]} 38... Bc4 {[%clk
0:00:06.7]} 39. Ke3 {[%clk 0:00:51.9]} 39... Ke6 {[%clk 0:00:07]} 40. Kf4 {[%clk
0:00:49.9]} 40... Kf6 {[%clk 0:00:07.4]} 41. Ke3 {[%clk 0:00:48.4]} 41... g5
{[%clk 0:00:07.5]} 42. hxg5+ {[%clk 0:00:48]} 42... hxg5 {[%clk 0:00:08.4]} 43.
Nd3 {[%clk 0:00:48.6]} 43... Bxa2 {[%clk 0:00:07.6]} 44. a6 {[%clk 0:00:46.2]}
44... c5 {[%clk 0:00:03.9]} 45. a7 {[%clk 0:00:30.3]} 45... Bd5 {[%clk
0:00:04.2]} 46. Nxc5 {[%clk 0:00:30.7]} 46... a2 {[%clk 0:00:04.3]} 47. Nb3
{[%clk 0:00:30.9]} 47... Ke7 {[%clk 0:00:04.1]} 48. c4 {[%clk 0:00:30]} 48...
Ba8 {[%clk 0:00:03.9]} 49. Na1 {[%clk 0:00:28.3]} 49... Kd6 {[%clk 0:00:04.2]}
50. f4 {[%clk 0:00:27.3]} 50... g4 {[%clk 0:00:03.9]} 51. Kd3 {[%clk 0:00:26.9]}
51... Kc6 {[%clk 0:00:04.1]} 52. Kc3 {[%clk 0:00:26.9]} 52... Kb6 {[%clk
0:00:04.6]} 53. Kb2 {[%clk 0:00:27.3]} 53... Kxa7 {[%clk 0:00:05.4]} 54. Kxa2
{[%clk 0:00:27.7]} 54... Kb6 {[%clk 0:00:06.3]} 55. Kb3 {[%clk 0:00:28.1]} 55...
Be4 {[%clk 0:00:06.7]} 56. Kb4 {[%clk 0:00:26.8]} 56... Kc6 {[%clk 0:00:06.5]}
57. Nb3 {[%clk 0:00:26.2]} 57... Kd6 {[%clk 0:00:06.7]} 58. Nc5 {[%clk
0:00:26.2]} 58... Bb1 {[%clk 0:00:07.2]} 59. Nb3 {[%clk 0:00:26]} 59... Bc2
{[%clk 0:00:07.2]} 60. Nd2 {[%clk 0:00:26]} 60... Bd3 {[%clk 0:00:07.4]} 61. Kc3
{[%clk 0:00:26]} 61... Be2 {[%clk 0:00:07.1]} 62. Nb1 {[%clk 0:00:26.1]} 62...
Bd1 {[%clk 0:00:06.7]} 63. Na3 {[%clk 0:00:26.2]} 63... c6 {[%clk 0:00:05.6]}
64. Nc2 {[%clk 0:00:24.5]} 64... Be2 {[%clk 0:00:05.3]} 65. Ne3 {[%clk
0:00:24.7]} 65... Ke6 {[%clk 0:00:05.3]} 66. c5 {[%clk 0:00:25]} 66... Bf3
{[%clk 0:00:04.9]} 67. Kb4 {[%clk 0:00:24.7]} 67... Be2 {[%clk 0:00:04.7]} 68.
Ka5 {[%clk 0:00:24.8]} 68... Bd3 {[%clk 0:00:03.6]} 69. Kb6 {[%clk 0:00:25]}
69... Bb5 {[%clk 0:00:04.1]} 70. d5+ {[%clk 0:00:24.1]} 70... Kd7 {[%clk
0:00:04.4]} 71. d6 {[%clk 0:00:23.4]} 71... Ke6 {[%clk 0:00:04.1]} 72. Nxf5
{[%clk 0:00:23]} 72... Kd7 {[%clk 0:00:03.4]} 73. Ne3 {[%clk 0:00:23.1]} 73...
Be2 {[%clk 0:00:04]} 74. Nc2 {[%clk 0:00:22.3]} 74... Bf3 {[%clk 0:00:04.3]} 75.
Nd4 {[%clk 0:00:23.2]} 75... Be4 {[%clk 0:00:04.5]} 76. Nb3 {[%clk 0:00:20.9]}
76... Bd5 {[%clk 0:00:04.6]} 77. Na5 {[%clk 0:00:19.4]} 77... Be4 {[%clk
0:00:04.6]} 78. Nb3 {[%clk 0:00:18.6]} 78... Bd5 {[%clk 0:00:04.7]} 79. Nd2
{[%clk 0:00:19.5]} 79... Ba2 {[%clk 0:00:04]} 80. Nf1 {[%clk 0:00:19.7]} 80...
Bd5 {[%clk 0:00:03]} 81. Ne3 {[%clk 0:00:20.6]} 81... Bf3 {[%clk 0:00:03.5]} 82.
f5 {[%clk 0:00:20.7]} 82... Be2 {[%clk 0:00:03.2]} 83. f6 {[%clk 0:00:20.6]}
83... Ke6 {[%clk 0:00:03.8]} 84. f7 {[%clk 0:00:20.2]} 84... Kxf7 {[%clk
0:00:03.6]} 85. d7 {[%clk 0:00:20.6]} 1-0